Cogmind - Beta 16 @@@ ROGUE MODE // 2025.12.02 @ 23:25:38 Player: jumpy Result: Self-destructed Performance ------------- Evolutions (1) 500 Regions Visited (2) 400 Robots Destroyed (15) 75 Value Destroyed (215) 215 Prototype IDs (1) 20 Alien Tech Used (0) 0 Bonus (0) 0 TOTAL SCORE: 1210 Bonus ------- None Cogmind --------- Core Integrity 143/400 Matter 262/300 Energy 41/100 System Corruption 0% Temperature Cool (9) Movement Core (350) Ox6 Location -9/Materials Parts ------- > --- POWER (1) -------- (None) > --- PROPULSION (3) --- (None) > --- UTILITY (3) ------ Large Storage Unit > --- WEAPON (2) ------- (None) > --- INVENTORY (15) --- Light Ion Engine Wheel Compact Wheel Improved Terrain Scanner Seismic Detector Mining Laser Peak State ------------ > --- POWER ------------ Ion Engine > --- PROPULSION ------- Aluminum Leg Aluminum Leg > --- UTILITY ---------- Large Storage Unit Seismic Detector > --- WEAPON ----------- EM Pulse Gun EM Pulse Gun > --- INVENTORY -------- Light Ion Engine Wheel Compact Wheel Small Storage Unit Improved Terrain Scanner Seismic Detector Small Laser Mining Laser [Rating: 8] Favorites ----------- Power Ion Engine Engine Ion Engine Propulsion Aluminum Leg Leg Aluminum Leg Utility Seismic Detector Device Seismic Detector Storage Large Storage Unit Weapon Light Cannon Energy Gun EM Pulse Gun Ballistic Cannon Light Cannon Build | -11 -10 -9 ------- Run | Yrd Mat Mat Slots Evolved 2 | . . 2 Power . | . . . Propulsion 1 | . . 1 Utility 1 | . . 1 Weapon . | . . . Parts Attached 12 | 6 5 1 Power 1 | 1 . . Engine 1 | 1 . . Core . | . . . Reactor . | . . . Propulsion 2 | 2 . . Treads . | . . . Leg 2 | 2 . . Wheel . | . . . Hover . | . . . Flight . | . . . Utility 3 | 2 1 . Device 1 | 1 . . Storage 2 | 1 1 . Processor . | . . . Hackware . | . . . Protection . | . . . Artifact . | . . . Weapon 6 | 1 4 1 Energy Gun 4 | 1 2 1 Energy Cannon . | . . . Ballistic Gun . | . . . Ballistic Cannon 2 | . 2 . Launcher . | . . . Special Weapon . | . . . Impact Weapon . | . . . Slashing Weapon . | . . . Piercing Weapon . | . . . Special Melee Weapon . | . . . Unidentified Prototypes 1 | . . 1 Parts Lost 8 | . . 8 Power 1 | . . 1 Propulsion 2 | . . 2 Utility 1 | . . 1 Weapon 4 | . . 4 Highest Loss Streak 8 | . . 8 To Critical Strikes . | . . . Average Backups 6 | 4 7 6 Power . | . 1 1 Propulsion 1 | 1 2 2 Utility 1 | . 2 2 Weapon 1 | 1 2 1 Tool/Special . | . . . Unused Backups 7 | 1 . 6 Power 1 | . . 1 Propulsion 2 | . . 2 Utility 2 | . . 2 Weapon 2 | 1 . 1 Tool/Special . | . . . Average Slot Usage (%) 85 | . 97 71 Engine 11 | . 14 9 Leg 24 | . 28 20 Device 12 | . 14 10 Storage 12 | . 14 11 Energy Gun 6 | . 11 1 Ballistic Cannon 16 | . 14 19 Peak Build Rating 8 | 7 8 7 Average Rating 6 | 4 7 6 On Entrance 4 | . 7 7 Avg Prop Armor Cover (%) . | . . . Naked Turns . | . . . Heaviest Build 32 | 12 32 32 Greatest Support 20 | 20 20 20 Greatest Overweight (x) 6 | . 1 6 Average Overweight (x) . | . . 1 Largest Inventory Capacity 15 | 8 15 15 Average Capacity 12 | 6 13 15 Most Carried 8 | 8 8 7 Average Carried 6 | 4 7 6 Final Capacity 15 | 8 15 15 Final Carried 8 | 8 7 6 Class Distribution -------------------- 100% | Mutant Dominant Class ---------------- Mutant | -10/Materials Mutant | -9/Materials Resources | -11 -10 -9 ----------- Run | Yrd Mat Mat Matter Collected 372 | 260 45 67 Remotely . | . . . Salvage Created 478 | 159 161 158 Parts 41 | 17 12 12 Haulers Intercepted 1 | . 1 . Recyclers Shooed 1 | . 1 . Parts Field Recycled . | . . . Retrieved Matter . | . . . Parts Self-Destructed . | . . . Prevented . | . . . Parts Restored . | . . . Kills | -11 -10 -9 ------- Run | Yrd Mat Mat Combat Hostiles Destroyed 6 | . 2 4 Guns 2 | . 2 . Cannons 4 | . . 4 Classes Destroyed 8 | 2 3 3 Worker 1 | . 1 . Tunneler 4 | 4 . . Hauler 1 | . 1 . Recycler 2 | 1 . 1 Operator 1 | . . 1 Swarmer 3 | . . 3 Grunt 2 | . 2 . Sentry 1 | . . 1 Best Kill Streak 6 | 1 1 6 Combat Bots Only 4 | . 1 4 Max Kills in Single Turn 2 | 1 1 2 Gunslinging . | . . . Exploded . | . . . Melee . | . . . Uniques/NPCs Destroyed . | . . . Combat | -11 -10 -9 -------- Run | Yrd Mat Mat Hostile Shots Fired 120 | . 17 103 Missed 32 | . 5 27 Hits 88 | . 12 76 Projectile 88 | . 12 76 Critical Strikes 7 | . 1 6 Damage Taken 1145 | . 156 989 Core 304 | . 47 257 Absorbed by Shields . | . . . Core Remaining (%) 90 | 100 81 . Volleys Fired 55 | 20 13 22 Largest 2 | 1 2 2 Hottest 85 | 40 80 85 Shots Fired 81 | 20 25 36 Gun 51 | 20 21 10 Cannon 30 | . 4 26 Launcher . | . . . Special . | . . . Kinetic 30 | . 4 26 Thermal 25 | 20 1 4 Explosive . | . . . Electromagnetic 26 | . 20 6 Robot Hit Streak 5 | 4 4 5 Robot Miss Streak 5 | 5 4 4 Penetration Max . | . . . Secondary Targets . | . . . Shots Hit Robots 42 | 8 14 20 Core Hits 20 | 6 6 8 Critical Kills . | . . . Critical Parts Destroyed . | . . . Critical Strikes 2 | . 1 1 Blast 1 | . . 1 Corrupt 1 | . 1 . Melee Attacks . | . . . Impact . | . . . Slashing . | . . . Piercing . | . . . Sneak Attacks . | . . . Combat Hostiles . | . . . Follow-up Attacks . | . . . Damage Inflicted 657 | 110 197 350 Guns 356 | 110 139 107 Cannons 301 | . 58 243 Explosions . | . . . Melee . | . . . Ramming . | . . . Kinetic 301 | . 58 243 Thermal 142 | 110 10 22 Explosive . | . . . Electromagnetic 214 | . 129 85 Impact . | . . . Slashing . | . . . Piercing . | . . . Highest Corruption . | . . . Average Corruption . | . . . Corruption Purged . | . . . Corruption Blocked . | . . . Overload Shots . | . . . Overflow Damage . | . . . Projectiles . | . . . Explosions . | . . . Melee . | . . . Knockbacks . | . . . Impact . | . . . Kinetic . | . . . Secondary . | . . . Self-Inflicted Damage . | . . . Shots . | . . . Rammed . | . . . Targets Rammed . | . . . Kicked . | . . . Crushed . | . . . Highest Temperature 126 | . 126 42 Average Temperature 39 | . 57 14 Received Heat Transfer 540 | . 105 435 Siege Activations . | . . . Martial Activations . | . . . Shielding Activations . | . . . Robots Disrupted . | . . . Combat Hostiles . | . . . Robots Corrupted . | . . . Combat Hostiles . | . . . Parts Fried . | . . . Impact Corruptions . | . . . Robots Melted . | . . . Combat Hostiles . | . . . Parts Melted . | . . . Heat Transferred 325 | 250 25 50 Parts Sabotaged . | . . . Parts Stolen . | . . . Parts Stripped . | . . . Power Chain Reactions . | . . . Alert | -11 -10 -9 ------- Run | Yrd Mat Mat Maximum Alert Level . | . . . Low Security (%) 100 | 100 100 100 Level 1 . | . . . Level 2 . | . . . Level 3 . | . . . Level 4 . | . . . Level 5 . | . . . High Security . | . . . Max Security . | . . . Peak Influence 100 | 5 30 100 Initial . | . . . Average 15 | 2 5 34 Influence Increases 221 | 25 63 133 Destroy 0b10 Robot/C 120 | . 40 80 Destroy 0b10 Robot/NC 45 | 25 10 10 Destroy Leader 32 | . 12 20 Successful Hack 7 | . . 7 Destroy Structure 2 | . 1 1 Lose Combat Pursuer 15 | . . 15 Influence Decreases 221 | 25 63 133 Time Decay 195 | 25 63 107 Lost Part 26 | . . 26 Squads Dispatched 2 | . 2 . Investigation 1 | . 1 . Extermination . | . . . Reinforcement 1 | . 1 . Assault . | . . . Garrison . | . . . Intercept . | . . . Searches Triggered . | . . . Construction Impeded . | . . . Haulers Reinforced . | . . . Active Scanning Responses . | . . . Cargo Convoy Interrupts . | . . . Stealth | -11 -10 -9 --------- Run | Yrd Mat Mat Distress Signals 1 | . 1 . Communications Jammed . | . . . Distress Signals . | . . . Times Spotted 15 | . 4 11 Peak Tracking Total 5 | . 2 5 Tactical Retreats 1 | . . 1 Traps | -11 -10 -9 ------- Run | Yrd Mat Mat Traps Triggered 1 | . 1 . Indirectly . | . . . Trap Hack Attempts . | . . . Triggered . | . . . Disarmed . | . . . Reprogrammed . | . . . Reused . | . . . Traps Extracted . | . . . Installed . | . . . Triggered . | . . . Machines | -11 -10 -9 ---------- Run | Yrd Mat Mat Machines Disabled . | . . . Max in Single Turn . | . . . Machines Repaired . | . . . Machines Dismantled . | . . . Machines Sabotaged . | . . . Overloaded Fab Kills . | . . . Hacking | -11 -10 -9 --------- Run | Yrd Mat Mat Machines Accessed 2 | . 1 1 Terminals 2 | . 1 1 Fabricators . | . . . Repair Stations . | . . . Recycling Units . | . . . Scanalyzers . | . . . Garrison Access . | . . . Total Hacks 7 | . 3 4 Successful 1 | . . 1 Failed 6 | . 3 3 Catastrophic 2 | . 2 . Database Lockouts . | . . . Manual 6 | . 2 4 Terminals 7 | . 3 4 Fabricators . | . . . Repair Stations . | . . . Recycling Units . | . . . Scanalyzers . | . . . Garrison Access . | . . . Terminal Hacks 1 | . . 1 Robot Schematic 1 | . . 1 Fabricator Hacks . | . . . Repair Station Hacks . | . . . Recycling Unit Hacks . | . . . Scanalyzer . | . . . Garrison Access Hacks . | . . . Unauthorized Hacks . | . . . Terminals . | . . . Fabricators . | . . . Repair Stations . | . . . Recycling Units . | . . . Scanalyzers . | . . . Garrison Access . | . . . Data Cores Recovered . | . . . Used . | . . . Hacking Detections 2 | . 1 1 Full Trace Events . | . . . Feedback Events . | . . . Feedback Blocked . | . . . Robot Schematics Acquired 1 | . . 1 Robots Built . | . . . Authchips . | . . . Time . | . . . Total Robot Build Rating . | . . . Part Schematics Acquired . | . . . Parts Built . | . . . Authchips . | . . . Time . | . . . Total Part Build Rating . | . . . Part Studies Acquired . | . . . Parts Repaired . | . . . Time . | . . . Parts Recycled . | . . . Recycled Matter . | . . . Retrieved Matter . | . . . Retrieved Components . | . . . Parts Scanalyzed . | . . . Part Schematics Acquired . | . . . Parts Damaged . | . . . Bothacking | -11 -10 -9 ------------ Run | Yrd Mat Mat Used RIF Installer . | . . . Robots Hacked . | . . . Non-combat . | . . . Combat . | . . . Robot Hacks Applied . | . . . Relay Couplers Released . | . . . Fabnet Peak Effective % . | . . . Robots Rewired . | . . . Allies Hacked . | . . . Hacks Repelled . | . . . Allies | -11 -10 -9 -------- Run | Yrd Mat Mat Total Allies . | . . . Largest Group . | . . . Highest-Rated Group . | . . . Highest-Rated Ally . | . . . Total Orders . | . . . Ally Attacks . | . . . Total Damage . | . . . Kills . | . . . Allies Corrupted . | . . . Allies Melted . | . . . Intel | -11 -10 -9 ------- Run | Yrd Mat Mat Active Infowar (turns) 725 | 77 351 297 Seismic 725 | 77 351 297 Robot Analysis Total . | . . . Derelict Logs Recovered . | . . . Drone Launches . | . . . Drone Recoveries . | . . . Exploration | -11 -10 -9 ------------- Run | Yrd Mat Mat Turns Passed 865 | 186 351 328 Spaces Moved 425 | 113 174 138 Core 13 | 10 . 3 Treads . | . . . Legs 412 | 103 174 135 Wheels . | . . . Hover . | . . . Flight . | . . . Fastest Speed 50 | 50 120 190 Average Speed 163 | 113 171 193 Slowest Speed 350 | 120 190 350 Overloaded Moves . | . . . Propulsion Burnouts . | . . . Robots Hopped . | . . . Potential Cave-ins . | . . . Cave-ins Triggered . | . . . Exploration Rate (%) 17 | 4 31 17 Regions Visited 2 Branch Regions . Pre-discovered Areas . | . . . Known Exits Taken . | . . . Unknown Exits Taken 2 | 1 1 . Scrap Searched . | . . . Spaces Dug . | . . . Terrain Destroyed . | . . . Melee . | . . . Projectile . | . . . AOE . | . . . Terrain Rammed . | . . . Walls Destroyed . | . . . Machines Disabled . | . . . Actions | -11 -10 -9 --------- Run | Yrd Mat Mat Total 510 | 148 200 162 Wait 8 | . 8 . Move 423 | 112 173 138 Hop . | . . . Pick Up 9 | 9 . . Fast Attach 7 | 6 . 1 Attach 2 | . 1 1 Detach . | . . . Swap 4 | . 4 . Drop 2 | 1 1 . Fire 55 | 20 13 22 Melee . | . . . Ram . | . . . Kick . | . . . Crush . | . . . Escape Stasis . | . . . Rewire . | . . . Trap . | . . . Miscellaneous . | . . . Route ------- -11/Scrapyard -10/Materials -9/Materials History --------- Turn | Location | Event 4 | -11/Scrapyard | Discovered new exit (range 14) 187 | -11/Scrapyard | Entered Materials 306 | -10/Materials | Build established: Mutant 516 | -10/Materials | Discovered new exit (range 11) 538 | -10/Materials | Entered another Materials area 538 | -9/Materials | Evolved 2 slots: Propulsion x1, Utility x1 856 | -9/Materials | Core integrity fell below 50% 866 | -9/Materials | Self-destructed Last Messages --------------- 00816_ K-01 Serf collects debris. 00826_ Lgt. Cannon destroyed. 00827_ T-07 Excavator is excavating. 00829_ Ion Engine destroyed. 00829_ K-01 Serf collects debris. 00831_ T-07 Excavator is excavating. 00832_ Aluminum Leg destroyed. 00834_ K-01 Serf collects debris. 00835_ K-01 Serf destroyed. 00835_ Seismic Detector destroyed. 00836_ U-05 Engineer builds a Door. 00840_ Aluminum Leg destroyed. 00848_ Acquired Prototype Energy Gun. 00848_ Identified Imp. EM Shotgun. 00852_ Sml. Laser destroyed. 00855_ Critical hit (Burn: +37). 00859_ Y-45 Defender misfires. 00861_ Critical hit (Burn: +37). 00862_ Imp. EM Shotgun destroyed. 00862_ Acquired 28 matter. Map ----- +----------------------------------------------------+ | ????????????????????????????? | | ????????????????????????????? | | ????????????????????????????? | | ????????????????????????????? | | ????????????????????????????? | | ????????????????????????????? | | ????????????????????????????? | | ????????????????????? ??????? | | ????????????????????? ??????? | | ????????????????????? ??????? | | ????????????????????# ??????? | | ????????????????????# #?????? | | ????????????????????# #?????? | | ??????????????????### ###???? | | ????????????????### #???? | | ????????????????? # %%#???? | | ?????????????????? u #???? | | ??????????????????# #???? | | ??????????????????# ????? | | ????????????######?# ###### | | ????????????# # # # | | ?????????????? """ + # T # | | ???????????????????# !g # | | ???????????????????# !%#Y # | | ???????????????????# =!# ! !# | | ???????????????????# #*@!!# | | ???????????????????# # # | | ???????????????????# # # | | ???????????????????# # # | | ???????????????????# ##Y### | | ????????#?????###### ####?? | | ??? #### ##### #????? | | ?? #????? | | ??? ????# % #????? | | ?? #??# ### ##????? | | ?? ####+##+## #?# #?????? | | ??%[=# # #?# ####### | | ??%*=#"" """ # #?# ## # | | ?#%* #"Y """ + #?# ## # | | ?#=[ #"" """ ## #### ## # | | ? + ?# #?# # # | | ?# # """ ??# #?# / # | | ?# # """ ??# #?# # # | | ?# #]] """???# #?## ## # | | ## #]] ???# #### ## # | | % #??###????# # / # | | #?????????# # ##+####### | | *$% #???#######+#+# ?????? | | #???# #"""?????? | | #???#[ #""" ????? | +----------------------------------------------------+ Best States ------------- Heat Dissipation 28 Energy Generation 10 Energy Capacity 250 Matter Stores 300 Matter Capacity 300 Sight Range 16 Terrain Scan Density 10 Evasion (%) 55 Item Schematics ----------------- None Robot Schematics ------------------ M-13 Machinist | -9/Materials | Hacked Fabricated ------------ Nothing Repaired ---------- Nothing Studied --------- None Alien Tech Used ----------------- None Achievements -------------- None Challenges ------------ None Game ------ Seed LinkedActiveSuit Manual? 0 Play Time 00:06:23 Cumulative 291.5 hours Start 2025.12.02 @ 23:21:05 End 2025.12.02 @ 23:25:38 Sessions 1 Manual Loads 0 Difficulty Rogue Special Mode None Game No. 624 Rogue 624 Adventurer 0 Explorer 0 Win Type - Total 20 Types 14/0/4/1/1/0/0/0/0/0 Lore% 80 Gallery% 72 Achievement% 50 Wizard Run 0 Options --------- Layout 0 ASCII 0 Keyboard 0 Movement Numpad Keybinds 0 Fullscreen 2 Font 18/Terminus Map View 76x50 Zoom Use 0% Tactical HUD 1 Map Filters NONE Filters SATURATION(100) Steam 1 RUN: dccec3c5-9fbf-497c-95a4-16c4ae9205b7